bitfinex-derivatives/quotes_BTCF0:USTF0_20240824
["timestamp","ask_amount","ask_price","bid_price","bid_amount"]
[1724543317078,0.10440274,64002.0,64001.0,1.51423184]
[1724543317466,0.19799194,64002.0,64001.0,1.51423184]
[1724543318672,0.10440274,64002.0,64001.0,1.51423184]
[1724543319072,0.19799194,64002.0,64001.0,1.51423184]
[1724543320777,0.10440274,64002.0,64001.0,1.51423184]
[1724543320979,0.19806617,64002.0,64001.0,1.51423184]
[1724543321178,0.10440274,64002.0,64001.0,1.51423184]
[1724543321380,0.19806727,64002.0,64001.0,1.51423184]
[1724543321674,0.10440274,64002.0,64001.0,1.51423184]
[1724543322067,0.14585018,64002.0,64001.0,1.51423184]
[1724543325683,0.14578404,64002.0,64001.0,1.51423184]
[1724543326180,0.14578404,64002.0,64001.0,1.61423184]
[1724543327382,0.19811377,64002.0,64001.0,1.97503184]
[1724543329079,0.19811377,64002.0,64001.0,1.61423184]
[1724543330882,0.19811377,64002.0,64001.0,1.51423184]
[1724543331187,0.19811377,64002.0,64001.0,1.61423184]
[1724543331682,0.10440342,64002.0,64001.0,1.61423184]
[1724543334585,0.10440342,64002.0,64001.0,1.97503184]
[1724543335295,0.10440183,64002.0,64001.0,1.97503184]
[1724543339284,0.10440183,64002.0,64001.0,1.87503184]
[1724543339892,0.20440183,64002.0,64001.0,1.87503184]
[1724543340793,0.20440183,64002.0,64001.0,1.51423184]
[1724543347987,0.29810209,64002.0,64001.0,1.51423184]
[1724543348383,0.20440183,64002.0,64001.0,1.51423184]
[1724543349895,0.20440448,64002.0,64001.0,1.51423184]
[1724543351082,0.56520448,64002.0,64001.0,1.51423184]
[1724543351496,0.20440448,64002.0,64001.0,1.51423184]
[1724543351795,0.46520448,64002.0,64001.0,1.51423184]
[1724543354192,0.46520448,64002.0,64001.0,1.61423184]
[1724543355895,0.10440448,64002.0,64001.0,1.61423184]
[1724543361399,0.19809456,64002.0,64001.0,1.61423184]
[1724543361593,0.10440448,64002.0,64001.0,1.61423184]
[1724543362204,0.02631748,64002.0,64001.0,1.61423184]
[1724543362399,0.001,64002.0,64001.0,1.61423184]
[1724543362602,0.001,64002.0,64001.0,1.69231984]
[1724543362809,0.02631748,64002.0,64001.0,1.69231984]
[1724543369409,0.001,64002.0,64001.0,1.69231984]
[1724543370208,0.02631463,64002.0,64001.0,1.69231984]
[1724543370409,0.07905371,64002.0,64001.0,1.69231984]
[1724543370613,0.001,64002.0,64001.0,1.69231984]
[1724543372110,0.001,64002.0,64001.0,2.05311984]
[1724543375314,0.001,64002.0,64001.0,1.69231984]
[1724543375523,0.001,64002.0,64001.0,2.05311984]
[1724543378337,0.69652915,64012.0,64001.0,2.05311984]
[1724543378338,0.07805371,64007.0,64006.0,0.078082]
[1724543378634,0.45449027,64012.0,64008.0,0.07808]
[1724543378635,0.07805371,64009.0,64008.0,0.07808]
[1724543378831,0.07805371,64009.0,64008.0,0.17808]
[1724543379532,0.07805371,64010.0,64009.0,0.078079]
[1724543380534,0.07805371,64010.0,64009.0,0.078119]
[1724543381032,0.1,64011.0,64009.0,0.078119]
[1724543381231,0.02531144,64010.0,64009.0,0.079119]
[1724543381631,0.02531144,64010.0,64009.0,0.00104]
[1724543381831,0.10338844,64010.0,64009.0,0.00104]
[1724543382233,0.10338844,64010.0,64009.0,0.00204]
[1724543386340,0.07798461,64010.0,64009.0,0.00204]
[1724543386537,0.15606161,64011.0,64009.0,0.10204]
[1724543387224,0.078037,64010.0,64009.0,0.10204]
[1724543387433,0.15602161,64010.0,64009.0,0.102]
[1724543387735,0.078037,64010.0,64009.0,0.102]
[1724543388538,0.078037,64010.0,64009.0,0.101]
[1724543388840,0.078037,64010.0,64009.0,0.102]
[1724543389632,0.10334891,64010.0,64009.0,0.102]
[1724543389838,0.10334891,64010.0,64009.0,0.101]
[1724543390040,0.10334891,64010.0,64009.0,0.102]
[1724543396645,0.10334906,64010.0,64009.0,0.102]
[1724543396833,0.10334906,64010.0,64009.0,0.180079]
[1724543397543,0.17172727,64010.0,64009.0,0.180079]
[1724543397738,0.19703933,64010.0,64009.0,0.180079]
[1724543398040,0.10334906,64010.0,64009.0,0.180079]
[1724543400642,0.02531206,64010.0,64009.0,0.180079]
[1724543401029,4e-05,64011.0,64010.0,0.078077]
[1724543402344,4e-05,64011.0,64010.0,0.080077]
[1724543402943,0.02535176,64011.0,64010.0,0.080077]
[1724543404043,0.11904203,64011.0,64010.0,0.080077]
[1724543404635,0.11904274,64011.0,64010.0,0.080077]
[1724543405337,0.11904188,64011.0,64010.0,0.080077]
[1724543406235,0.11904188,64011.0,64010.0,1.59226884]
[1724543407544,0.11904188,64011.0,64010.0,1.63890292]
[1724543407545,0.02535161,64011.0,64010.0,1.63890292]
[1724543407746,0.09369027,64015.0,64010.0,1.51419184]
[1724543408051,0.0253099,64014.0,64013.0,0.3608]
[1724543408249,0.11899991,64016.0,64013.0,0.3608]
[1724543408435,0.02530964,64015.0,64013.0,0.3608]
[1724543408634,0.09369027,64017.0,64016.0,0.07807]
[1724543409648,0.02530964,64017.0,64016.0,0.07807]
[1724543410049,0.10078969,64018.0,64016.0,0.07807]
[1724543410248,0.10078969,64018.0,64017.0,0.1]
[1724543410445,0.12609945,64018.0,64017.0,0.1]
[1724543411643,0.12609945,64018.0,64017.0,0.101]
[1724543412351,0.03240918,64018.0,64017.0,0.101]
[1724543413850,0.03240918,64018.0,64017.0,0.102]
[1724543415055,0.03240918,64018.0,64017.0,0.002]
[1724543415351,0.03240918,64018.0,64017.0,0.102]
[1724543415952,0.03240918,64018.0,64017.0,0.10204]
[1724543418057,0.12609945,64018.0,64017.0,0.10204]
[1724543419147,0.12609912,64018.0,64017.0,0.10204]
[1724543419351,0.03240885,64018.0,64017.0,0.10204]
[1724543420250,0.11047685,64018.0,64017.0,0.00204]
[1724543420455,0.11047685,64018.0,64017.0,0.10204]
[1724543422163,0.11047685,64018.0,64017.0,1.61423184]
[1724543422955,0.11047685,64018.0,64017.0,1.69230084]
[1724543430265,0.17879808,64018.0,64017.0,1.69230084]
[1724543430559,0.02530943,64018.0,64017.0,1.69230084]
[1724543430750,0.02530943,64020.0,64017.0,1.74570084]
[1724543430956,0.17169366,64022.0,64019.0,0.1]
[1724543431257,0.02530806,64021.0,64020.0,0.078065]
[1724543432664,0.02530806,64021.0,64020.0,0.079065]
[1724543433461,0.09363066,64026.0,64020.0,0.0572]
[1724543433651,0.09363066,64028.0,64025.0,0.4608]
[1724543433858,0.09363066,64028.0,64027.0,0.1]
[1724543434155,0.09363066,64028.0,64027.0,0.178057]
[1724543434354,0.07799525,64030.0,64027.0,0.6705889]
[1724543434556,0.07799525,64035.0,64034.0,0.078048]
[1724543434756,0.27615999,64049.0,64034.0,0.078048]
[1724543434757,0.07799525,64037.0,64036.0,0.078046]
[1724543434960,0.07799525,64038.0,64036.0,0.178046]
[1724543435166,0.07799525,64038.0,64037.0,0.178044]
[1724543435469,0.07799525,64040.0,64037.0,0.178044]
[1724543435653,0.07799525,64040.0,64039.0,0.1]
[1724543436254,0.07799525,64040.0,64039.0,0.10004]
[1724543436454,0.02530026,64042.0,64039.0,0.10004]
[1724543436455,0.07799525,64041.0,64039.0,0.10004]
[1724543436659,0.07799525,64041.0,64039.0,4e-05]
[1724543436869,0.20334128,64040.0,64039.0,4e-05]
[1724543437057,0.28138228,64040.0,64039.0,4e-05]
[1724543437259,0.078052,64031.0,64030.0,0.00023426]
[1724543437563,0.178052,64031.0,64030.0,0.00023426]
[1724543437959,0.25590727,64031.0,64030.0,0.00023426]
[1724543438862,0.25590727,64031.0,64030.0,0.00123426]
[1724543439059,0.15590727,64031.0,64030.0,0.00123426]
[1724543439669,0.15690727,64031.0,64030.0,0.00223426]
[1724543441471,0.079052,64031.0,64030.0,0.00223426]
[1724543441864,0.15690727,64031.0,64030.0,0.00223426]
[1724543442661,0.079052,64031.0,64030.0,0.00223426]
[1724543443266,0.079052,64031.0,64030.0,0.10223426]
[1724543444163,0.079052,64031.0,64030.0,0.00223426]
[1724543444375,0.079052,64031.0,64030.0,0.10223426]
[1724543448270,0.25690727,64031.0,64030.0,0.00223426]
[1724543448471,0.20435822,64031.0,64030.0,0.00223426]
[1724543449268,0.26095822,64031.0,64030.0,0.00223426]
[1724543451975,0.26095883,64031.0,64030.0,0.00223426]
[1724543452478,0.71518515,64031.0,64030.0,0.00223426]
[1724543453681,0.078064,64021.0,64020.0,1.51219184]
[1724543453975,0.538864,64021.0,64020.0,1.51219184]
[1724543454571,0.538904,64021.0,64020.0,1.51219184]
[1724543454875,0.538904,64021.0,64020.0,1.51319184]
[1724543455178,0.538904,64021.0,64020.0,1.51419184]
[1724543455179,0.439904,64021.0,64020.0,1.51419184]
[1724543456180,0.36184,64021.0,64020.0,1.59225684]
[1724543457084,0.42415421,64021.0,64020.0,1.59225684]
[1724543457270,0.06335421,64021.0,64020.0,1.59225684]
[1724543457767,0.00104,64021.0,64020.0,1.59225684]
[1724543458381,0.06335421,64021.0,64020.0,1.59225684]
[1724543458574,0.00104,64021.0,64020.0,1.59225684]
[1724543459287,0.00104,64021.0,64020.0,1.63894574]
[1724543459472,0.00104,64021.0,64020.0,1.63885433]
[1724543460482,0.00104,64021.0,64020.0,1.59225684]
[1724543461774,0.00104,64021.0,64020.0,1.64935684]
[1724543462382,0.00104,64021.0,64020.0,2.51795684]
[1724543463880,0.04781092,64021.0,64020.0,2.51795684]
[1724543464183,0.00104,64021.0,64020.0,2.59602184]
[1724543464382,0.04677092,64022.0,64021.0,0.078064]
[1724543464585,0.04677092,64022.0,64021.0,0.646664]
[1724543464786,0.04677092,64022.0,64021.0,1.046664]
[1724543465085,0.04677092,64022.0,64021.0,1.124768]
[1724543465379,0.078046,64036.0,64021.0,1.124768]
[1724543465380,0.06236298,64028.0,64022.0,0.4686]
[1724543465585,0.078081,64040.0,64027.0,0.538857]
[1724543465586,0.0778694,64035.0,64027.0,0.538857]
[1724543465884,0.06236462,64035.0,64034.0,0.3608]
[1724543466087,0.06236462,64037.0,64034.0,0.3608]
[1724543466380,0.06236462,64037.0,64036.0,0.1]
[1724543466878,0.06236462,64037.0,64036.0,0.10004]
[1724543467275,0.06236462,64037.0,64036.0,0.178086]
[1724543467476,0.06236462,64039.0,64036.0,0.96852]
[1724543467677,0.06236462,64039.0,64038.0,0.1]
[1724543468077,0.06236462,64039.0,64038.0,0.178043]
[1724543468382,0.06240462,64040.0,64039.0,0.078042]
[1724543469084,0.06240462,64040.0,64039.0,0.078082]
[1724543469478,4e-05,64040.0,64039.0,0.078082]
[1724543470171,0.06240462,64040.0,64039.0,0.078082]
[1724543470373,0.06240462,64040.0,64039.0,0.08518525]
[1724543470579,0.06231933,64040.0,64039.0,0.08518525]
[1724543470880,0.00104,64040.0,64039.0,0.080082]
[1724543471582,0.079081,64040.0,64039.0,0.00204]
[1724543472987,0.1569504,64040.0,64039.0,0.00204]
[1724543473284,0.49482256,64040.0,64029.0,0.00023426]
[1724543473587,0.06227382,64032.0,64029.0,0.00023426]
[1724543473785,0.1108,64031.0,64029.0,0.00023426]
[1724543473989,4e-05,64030.0,64029.0,0.00023426]
[1724543474681,0.078093,64030.0,64029.0,0.00023426]
[1724543474987,0.078093,64030.0,64029.0,0.00123426]
[1724543474988,0.438893,64030.0,64029.0,0.00123426]
[1724543475172,0.438893,64030.0,64029.0,0.00223426]
[1724543476687,0.078093,64030.0,64029.0,0.00223426]
[1724543476883,0.081093,64030.0,64029.0,0.00223426]
[1724543482489,0.441893,64030.0,64029.0,0.00223426]
[1724543485082,0.441893,64030.0,64029.0,1.5144261]
[1724543486391,0.51973528,64030.0,64029.0,1.5144261]
[1724543489192,0.15893528,64030.0,64029.0,1.5144261]
[1724543489494,0.36384,64030.0,64029.0,1.5924801]
[1724543490381,0.00304,64030.0,64029.0,2.3010001]
[1724543490582,0.00304,64030.0,64029.0,2.3547981]
[1724543490778,0.00304,64030.0,64029.0,2.30819264]
[1724543492184,0.00304,64030.0,64029.0,1.83967264]
[1724543492692,0.00304,64030.0,64029.0,1.59967264]
[1724543492879,0.00304,64030.0,64029.0,1.5924801]
[1724543497493,0.06534812,64030.0,64029.0,1.5924801]
[1724543500486,0.00304,64030.0,64029.0,1.5924801]
[1724543502595,0.00304,64030.0,64029.0,1.6924801]
[1724543504596,0.06541448,64030.0,64029.0,1.6924801]
[1724543506485,0.06541448,64030.0,64029.0,1.5924801]
[1724543506997,0.06541448,64030.0,64029.0,1.82566871]
[1724543507188,0.00304,64030.0,64029.0,1.8722422]
[1724543510286,0.00304,64030.0,64029.0,1.63905359]
[1724543512398,0.00304,64030.0,64029.0,1.5924801]
[1724543516391,0.00304,64030.0,64029.0,1.65463126]
[1724543516996,0.00304,64030.0,64029.0,1.9532801]
[1724543517602,0.00304,64030.0,64029.0,2.01543126]
[1724543518004,0.00304,64030.0,64029.0,1.9532801]
[1724543525408,0.00304,64030.0,64029.0,1.5924801]
[1724543525607,0.00304,64030.0,64029.0,2.3140801]
[1724543526401,0.00304,64030.0,64029.0,2.4140801]
[1724543526798,0.00304,64030.0,64029.0,2.4921341]
[1724543531311,0.06239087,64035.0,64033.0,0.1]
[1724543531511,0.06239087,64035.0,64029.0,2.3140801]
[1724543531512,0.06239087,64035.0,64034.0,0.232248]
[1724543532399,0.06239087,64038.0,64034.0,0.1542]
[1724543532702,0.002,64035.0,64034.0,0.132288]
[1724543532905,0.002,64035.0,64034.0,0.547888]
[1724543533415,0.002,64035.0,64034.0,0.548888]
[1724543533914,0.002,64035.0,64034.0,0.648888]
[1724543534308,0.06239087,64039.0,64038.0,0.078043]
[1724543534505,0.06239087,64039.0,64038.0,0.22467797]
[1724543535209,0.06239087,64039.0,64038.0,0.22471797]
[1724543535410,0.06239087,64039.0,64038.0,0.22571797]
[1724543535803,0.06239087,64039.0,64038.0,0.22671797]
[1724543536013,0.06239087,64039.0,64038.0,0.180083]
[1724543536214,0.06239087,64039.0,64038.0,0.22671797]
[1724543536515,4e-05,64040.0,64039.0,0.078042]
[1724543537016,0.06239997,64040.0,64039.0,0.078042]
[1724543537215,4e-05,64040.0,64039.0,0.078042]
[1724543537405,4e-05,64040.0,64039.0,0.078082]
[1724543537802,4e-05,64040.0,64039.0,0.079082]
[1724543538013,4e-05,64040.0,64039.0,0.439882]
[1724543538311,4e-05,64040.0,64039.0,0.48650414]
[1724543538815,0.17145532,64050.0,64039.0,0.48650414]
[1724543538816,0.06235997,64047.0,64043.0,0.078037]
[1724543539119,0.06235997,64049.0,64048.0,0.078031]
[1724543539315,0.06235997,64050.0,64049.0,0.07803]
[1724543539516,0.06235997,64051.0,64050.0,0.078029]
[1724543539710,0.06235997,64051.0,64050.0,0.178029]
[1724543540615,0.11605997,64052.0,64051.0,0.078027]
[1724543541308,0.11605997,64052.0,64051.0,0.078067]
[1724543541509,0.0537,64052.0,64051.0,0.078067]
[1724543542117,0.0537,64052.0,64051.0,0.079067]
[1724543543005,0.0537,64052.0,64051.0,0.080067]
[1724543543210,0.07920228,64058.0,64051.0,0.00204]
[1724543543408,0.06226976,64059.0,64058.0,0.078019]
[1724543543613,0.14832632,64067.0,64058.0,0.1]
[1724543543614,0.06224903,64062.0,64058.0,0.1]
[1724543543817,0.06224903,64063.0,64062.0,0.078014]
[1724543544010,0.06224903,64063.0,64062.0,0.178014]
[1724543544416,0.06224903,64063.0,64057.0,0.3608]
[1724543544417,0.46828,64063.0,64057.0,0.3608]
[1724543544619,0.09996,64060.0,64057.0,0.3608]
[1724543544817,0.0548,64059.0,64057.0,0.3608]
[1724543545324,0.0575,64058.0,64057.0,0.3608]
[1724543545908,0.05758,64058.0,64057.0,0.4608]
[1724543546422,0.05758,64058.0,64057.0,0.53882]
[1724543546622,0.02650397,64069.0,64057.0,0.8216]
[1724543546817,0.08260397,64073.0,64068.0,0.1]
[1724543547013,0.0561,64073.0,64072.0,0.4608]
[1724543547218,0.077998,64076.0,64072.0,0.3608]
[1724543547416,0.1,64073.0,64072.0,0.3608]
[1724543548620,0.078,64074.0,64072.0,0.3618]
[1724543548916,0.078,64074.0,64072.0,0.36184]
[1724543549129,0.078,64074.0,64072.0,0.36084]
[1724543549323,0.078,64074.0,64073.0,4e-05]
[1724543550922,0.078,64074.0,64073.0,0.00104]
[1724543552119,0.078,64074.0,64073.0,0.00204]
[1724543553422,0.9462,64074.0,64073.0,0.00204]
[1724543553623,0.078005,64069.0,64068.0,0.36103426]
[1724543554028,0.546245,64069.0,64068.0,0.36103426]
[1724543555123,0.907045,64069.0,64068.0,0.00223426]
[1724543556424,0.078015,64062.0,64059.0,0.078017]
[1724543556827,0.078008,64067.0,64064.0,0.078011]
[1724543557024,0.078009,64066.0,64064.0,0.078011]
[1724543557226,0.3608,64073.0,64060.0,0.3608]
[1724543557529,0.053,64065.0,64060.0,0.36103426]
[1724543557723,0.001,64062.0,64060.0,0.36103426]
[1724543557923,0.001,64062.0,64060.0,0.00023426]
[1724543558534,0.1071,64065.0,64060.0,0.00123426]
[1724543559237,0.18511,64065.0,64064.0,4e-05]
[1724543560637,0.18511,64065.0,64064.0,0.00104]
[1724543561230,0.18711,64065.0,64064.0,0.00204]
[1724543563433,0.13301,64065.0,64064.0,0.00204]
[1724543563829,0.002,64065.0,64064.0,0.320052]
[1724543564638,0.002,64065.0,64064.0,0.080052]
[1724543567255,0.002,64065.0,64064.0,0.135852]
[1724543571558,0.002,64065.0,64064.0,0.191652]
[1724543574444,0.002,64065.0,64064.0,0.47824916]
[1724543574750,0.002,64065.0,64064.0,0.431652]
[1724543576855,0.002,64065.0,64064.0,0.191652]
[1724543578354,0.002,64065.0,64064.0,1.70384384]
[1724543579069,0.07815382,64073.0,64072.0,0.078002]
[1724543579353,0.07815382,64073.0,64072.0,0.438802]
[1724543579559,0.00023426,64073.0,64072.0,0.438802]
[1724543579859,0.00023426,64073.0,64072.0,0.438842]
[1724543580246,0.00123426,64073.0,64072.0,0.440842]
[1724543580457,0.07915382,64073.0,64072.0,0.440842]
[1724543580852,0.07915382,64073.0,64072.0,0.36284]
[1724543581050,0.02652198,64073.0,64072.0,0.36284]
[1724543583656,0.02652198,64073.0,64072.0,0.00204]
[1724543585363,0.0265224,64073.0,64072.0,0.00204]
[1724543588370,0.11994872,64073.0,64072.0,0.00204]
[1724543589560,0.0265224,64073.0,64072.0,0.00204]
[1724543590267,0.02652239,64073.0,64072.0,0.00204]
[1724543593862,0.02652239,64073.0,64072.0,0.080042]
[1724543594265,0.09481466,64073.0,64072.0,0.080042]
[1724543594463,0.12010279,64073.0,64072.0,0.080042]
[1724543595471,0.02652239,64073.0,64072.0,0.080042]
[1724543599861,0.02652205,64073.0,64072.0,0.080042]
[1724543606278,0.09484614,64073.0,64072.0,0.080042]
[1724543606471,0.00123426,64073.0,64072.0,0.080042]
[1724543606678,0.09484614,64073.0,64072.0,0.080042]
[1724543606876,0.02652205,64073.0,64072.0,0.080042]
[1724543608478,0.07923188,64073.0,64072.0,0.12658845]
[1724543608671,0.00123426,64073.0,64072.0,0.080042]
[1724543609067,0.04927188,64076.0,64075.0,0.077998]
[1724543609277,0.04927188,64076.0,64075.0,0.12459254]
[1724543609583,0.09361188,64081.0,64080.0,0.077992]
[1724543610581,0.02528452,64081.0,64080.0,0.077992]
[1724543610776,0.09361188,64082.0,64081.0,0.077991]
[1724543611589,0.02528452,64082.0,64081.0,0.077991]
[1724543611878,0.02528451,64084.0,64082.0,0.07799]
[1724543612077,0.02528444,64083.0,64082.0,0.07799]
[1724543612382,0.41552599,64089.0,64088.0,0.077982]
[1724543612581,0.45432599,64095.0,64088.0,0.3608]
[1724543612895,0.02528059,64094.0,64093.0,0.077976]
[1724543613273,0.11880658,64097.0,64093.0,0.077976]
[1724543613478,0.02528059,64096.0,64094.0,0.3608]
[1724543613679,0.077972,64097.0,64094.0,0.3608]
[1724543613880,0.02527861,64096.0,64094.0,0.3608]
[1724543614478,0.077972,64097.0,64094.0,0.3608]
[1724543614979,0.077972,64097.0,64094.0,0.3618]
[1724543615881,0.00717922,64100.0,64097.0,0.077971]
[1724543616071,0.02527851,64099.0,64097.0,0.077971]
[1724543616476,0.3608,64098.0,64094.0,0.002]
[1724543616782,0.077974,64095.0,64094.0,0.002]
[1724543617185,0.077974,64095.0,64087.0,0.00023406]
[1724543617186,0.8933215,64095.0,64087.0,0.00023406]
[1724543617483,0.317982,64088.0,64087.0,0.00023406]
[1724543617986,0.34326697,64088.0,64087.0,0.00023406]
[1724543618486,0.10326697,64088.0,64087.0,0.00023406]
[1724543618785,0.10326697,64088.0,64087.0,0.00123406]
[1724543620077,0.46406697,64088.0,64087.0,0.00223406]
[1724543620682,0.46406697,64088.0,64087.0,0.00123406]
[1724543620979,0.46406697,64088.0,64087.0,0.00223406]
[1724543621378,0.47142089,64088.0,64087.0,0.00223406]
[1724543622484,0.56494688,64088.0,64087.0,0.00223406]
[1724543622887,0.47142089,64088.0,64087.0,0.00223406]
[1724543623476,0.02528497,64088.0,64087.0,0.00223406]
[1724543623687,0.077978,64092.0,64088.0,0.077982]
[1724543623979,0.077978,64092.0,64089.0,0.077981]
[1724543624392,0.077978,64092.0,64091.0,4e-05]
[1724543625982,0.077978,64092.0,64091.0,0.078019]
[1724543626284,0.09352599,64096.0,64093.0,0.077976]
[1724543626491,0.02528143,64095.0,64093.0,0.077976]
[1724543626689,0.02528143,64094.0,64093.0,0.077976]
[1724543626889,0.02528143,64095.0,64093.0,0.077976]
[1724543627486,0.02528143,64095.0,64093.0,0.078976]
[1724543627687,0.02528143,64095.0,64094.0,4e-05]
[1724543629387,0.15002599,64101.0,64098.0,0.07797]
[1724543629592,0.38607979,64099.0,64098.0,0.07797]
[1724543629890,0.3860791,64099.0,64098.0,0.07797]
[1724543630091,0.32332,64102.0,64101.0,0.077967]
[1724543630390,0.4177,64108.0,64098.0,0.36084]
[1724543630391,0.077961,64106.0,64098.0,0.36084]
[1724543630590,0.04662867,64099.0,64098.0,0.43881]
[1724543630979,0.06217223,64102.0,64099.0,0.077969]
[1724543630980,0.04662867,64100.0,64099.0,0.077969]
[1724543631293,0.04662867,64100.0,64099.0,0.134169]
[1724543631593,0.06217223,64102.0,64101.0,0.077967]
[1724543632294,0.06217223,64102.0,64101.0,0.078007]
[1724543632594,0.06217223,64103.0,64101.0,0.078007]
[1724543633591,0.05663223,64102.0,64101.0,0.078007]
[1724543633785,0.05663223,64102.0,64101.0,0.078967]
[1724543634183,0.05663223,64102.0,64101.0,0.079967]
[1724543634490,0.02663223,64102.0,64101.0,0.079967]
[1724543634885,0.02663223,64102.0,64101.0,0.078967]
[1724543635087,0.02663223,64102.0,64101.0,0.079967]
[1724543635488,4e-05,64103.0,64102.0,0.077965]
[1724543636691,4e-05,64103.0,64102.0,0.078965]
[1724543636998,4e-05,64103.0,64102.0,0.079965]
[1724543637993,0.946004,64103.0,64090.0,0.3608]
[1724543638296,0.04661202,64096.0,64093.0,0.24]
[1724543638595,0.04661202,64097.0,64094.0,0.1659]
[1724543638794,0.12458302,64097.0,64096.0,0.3608]
[1724543638996,0.077971,64097.0,64096.0,0.3608]
[1724543640491,0.077971,64097.0,64096.0,0.3628]
[1724543641187,0.07773592,64103.0,64096.0,0.6028]
[1724543641392,0.07773592,64103.0,64102.0,0.077965]
[1724543641393,0.04665994,64103.0,64102.0,0.077965]
[1724543641593,4e-05,64103.0,64102.0,0.077965]
[1724543641996,4e-05,64103.0,64102.0,0.078005]
[1724543642595,4e-05,64103.0,64102.0,4e-05]
[1724543642804,0.078004,64103.0,64102.0,4e-05]
[1724543642989,0.078004,64103.0,64102.0,0.00104]
[1724543643395,1.263968,64103.0,64102.0,0.00104]
[1724543643702,0.077965,64102.0,64094.0,1.51219184]
[1724543644001,0.00136,64103.0,64101.0,0.3608]
[1724543644202,4e-05,64103.0,64101.0,0.3608]
[1724543644404,0.078004,64103.0,64101.0,0.3608]
[1724543644895,4e-05,64103.0,64101.0,0.3608]
[1724543646101,4e-05,64103.0,64101.0,0.3618]
[1724543646604,4e-05,64103.0,64101.0,0.3628]
[1724543647006,4e-05,64103.0,64102.0,0.0583]
[1724543647203,4e-05,64103.0,64102.0,0.5263]
[1724543647411,4e-05,64103.0,64102.0,0.9263]
[1724543647608,0.04659388,64117.0,64116.0,0.077948]
[1724543647802,0.04659388,64123.0,64121.0,0.077942]
[1724543648105,0.3608,64134.0,64121.0,0.077942]
[1724543648106,0.04659388,64125.0,64122.0,0.3608]
[1724543648297,0.3608,64134.0,64122.0,0.3608]
[1724543648298,0.3608,64134.0,64127.0,0.077935]
[1724543648500,0.3608,64134.0,64124.0,0.24]
[1724543648501,0.09352599,64141.0,64132.0,0.077928]
[1724543648703,0.137315,64144.0,64132.0,0.077928]
[1724543648907,0.02526364,64143.0,64132.0,0.077928]
[1724543649208,0.3608,64139.0,64130.0,0.00023388]
[1724543649393,0.04651336,64131.0,64130.0,0.00023388]
[1724543650002,0.4678,64131.0,64130.0,0.00023388]
[1724543650201,0.05494,64131.0,64130.0,0.00023388]
[1724543650417,0.05494,64131.0,64130.0,0.00123388]
[1724543650418,0.52274,64131.0,64130.0,0.00123388]
[1724543650599,0.05494,64131.0,64130.0,0.00223388]
[1724543650798,0.52274,64131.0,64130.0,0.00223388]
[1724543651009,4e-05,64131.0,64130.0,0.32016488]
[1724543651207,4e-05,64131.0,64130.0,0.08016488]
[1724543651402,0.0165438,64136.0,64130.0,0.00223388]
[1724543651904,0.077925,64136.0,64130.0,0.00123388]
[1724543652098,0.077925,64136.0,64135.0,4e-05]
[1724543653306,0.077925,64136.0,64135.0,0.00204]
[1724543653700,0.945685,64136.0,64135.0,0.00204]
[1724543654112,0.0549,64145.0,64135.0,0.00204]
[1724543654113,0.09352599,64147.0,64135.0,0.36284]
[1724543654412,0.3608,64155.0,64141.0,0.3608]
[1724543654711,0.077909,64149.0,64141.0,0.3608]
[1724543654906,0.077909,64149.0,64145.0,4e-05]
[1724543655300,0.3608,64155.0,64145.0,4e-05]
[1724543655610,0.077904,64153.0,64145.0,4e-05]
[1724543656212,0.077904,64153.0,64145.0,0.00104]
[1724543656416,0.077906,64151.0,64145.0,0.00104]
[1724543656607,0.3608,64155.0,64145.0,0.00204]
[1724543656912,0.07791,64148.0,64145.0,0.00204]
[1724543657305,0.438712,64146.0,64145.0,0.00204]
[1724543657705,0.077912,64146.0,64145.0,0.00204]
[1724543665313,0.155824,64146.0,64145.0,0.00204]
[1724543665516,0.86768,64146.0,64130.0,0.00023388]
[1724543665814,0.3608,64142.0,64130.0,0.00023388]
[1724543666522,0.3608,64142.0,64130.0,0.00123388]
[1724543666714,0.077928,64133.0,64130.0,0.00123388]
[1724543666912,0.3608,64135.0,64130.0,0.00123388]
[1724543667216,0.07793,64131.0,64130.0,0.00223388]
[1724543667416,0.07801,64131.0,64130.0,0.00223388]
[1724543668619,0.07801,64131.0,64130.0,0.00123388]
[1724543668921,0.07801,64131.0,64130.0,0.00223388]
[1724543670216,0.07801,64131.0,64130.0,0.00123388]
[1724543670423,0.07901,64131.0,64130.0,0.00223388]
[1724543680433,0.00108,64131.0,64130.0,0.00223388]
[1724543680629,0.00108,64131.0,64130.0,0.08016488]
[1724543682927,0.00108,64131.0,64130.0,0.90876488]
[1724543683326,0.3608,64145.0,64130.0,1.23083388]
[1724543683327,0.07776482,64141.0,64130.0,1.23083388]
[1724543683525,0.07776482,64141.0,64140.0,0.077919]
[1724543685018,0.07876482,64141.0,64140.0,0.078919]
[1724543687631,0.07776482,64141.0,64140.0,0.078919]
[1724543687833,0.07776482,64141.0,64140.0,0.079919]
[1724543690940,0.077914,64144.0,64141.0,0.077918]
[1724543691142,0.02526038,64143.0,64141.0,0.077918]
[1724543692137,0.02526038,64143.0,64141.0,0.079918]
[1724543692341,0.02526038,64143.0,64141.0,0.002]
[1724543692534,0.3608,64148.0,64141.0,0.002]
[1724543692535,0.15997738,64142.0,64141.0,0.002]
[1724543692736,0.52077738,64142.0,64141.0,0.002]
[1724543693445,0.56363667,64142.0,64141.0,0.002]
[1724543693746,0.91058038,64142.0,64141.0,0.001]
[1724543694334,0.91058038,64142.0,64141.0,0.002]
[1724543694534,0.44286038,64142.0,64141.0,0.002]
[1724543694845,0.52077738,64142.0,64141.0,0.002]
[1724543695935,0.61414498,64142.0,64141.0,0.002]
[1724543696133,0.52077738,64142.0,64141.0,0.002]
[1724543697237,0.02526038,64142.0,64141.0,0.002]
[1724543697439,0.07780149,64142.0,64141.0,0.002]
[1724543697633,0.45416807,64148.0,64141.0,0.079918]
[1724543697634,0.09336807,64147.0,64141.0,0.079918]
[1724543697829,0.11862892,64147.0,64141.0,0.079918]
[1724543698233,0.11862892,64146.0,64141.0,0.079918]